Workbook

Sheet Enterprise
A13: Inputs | B13: 0 | C13: 1 | D13: 2 | E13: 3 | F13: 4
A14: Horizon year | B14: 4
A15: WACC | B15: 0.1185268145
A16: Perpetual growth in residual enterprise profit, after tax | B16: 0.02
A17: Enterprise profit after tax: EPAT | B17: NA | C17: =B18*11% -> 11 | D17: =C18*11% -> 11.88 | E17: =D18*11% -> 12.8304 | F17: =E18*11% -> 13.856832
A18: Net enterprise assets [NEA] | B18: 100 | C18: =B18*(1+8%) -> 108 | D18: =C18*(1+8%) -> 116.64 | E18: =D18*(1+8%) -> 125.9712 | F18: =E18*(1+8%) -> 136.048896
A20: Valuation computations | B20: =B13 -> 0 | C20: 1 | D20: 2 | E20: 3 | F20: 4 | G20: 5 | H20: 6
A21: Enterprise profit after tax | B21: =B17 -> NA | C21: =C17 -> 11 | D21: 11.88 | E21: 12.8304 | F21: 13.856832 | G21: =G25+G24 -> 15.02982654
A22: Net enterprise assets | B22: 100 | C22: 108 | D22: 116.64 | E22: 125.9712 | F22: 136.048896
A23: Enterprise cash flows | B23: NA | C23: =C21-(C22-B22) -> 3 | D23: =D21-(D22-C22) -> 3.24 | E23: =E21-(E22-D22) -> 3.4992 | F23: =F21-(F22-E22) -> 3.779136
A24: Charge for enterprise capital | C24: =B22*$B$15 -> 11.85268145 | D24: =C22*$B$15 -> 12.80089596 | E24: =D22*$B$15 -> 13.82496764 | F24: =E22*$B$15 -> 14.93096505 | G24: =F22*$B$15 -> 16.12544226
A25: Residual enterprise profit after tax | B25: NA | C25: =C21-C24 -> -0.852681449 | D25: =D21-D24 -> -0.9208959649 | E25: =E21-E24 -> -0.9945676421 | F25: =F21-F24 -> -1.074133054 | G25: =F25*(1+$B$16) -> -1.095615715 | H25: =G25*(1+$B$16) -> -1.117528029
A26: Change in residual enterprise profit after tax | B26: NA | C26: NA | D26: =D25-C25 -> -0.06821451592 | E26: =E25-D25 -> -0.0736716772 | F26: =F25-E25 -> -0.07956541137 | G26: =G25-F25 -> -0.02148266107 | H26: =H25-G25 -> -0.02191231429
A27: Growth rates and returns | B27: =B20 -> 0 | C27: =C20 -> 1 | D27: 2 | E27: 3 | F27: 4 | G27: 5 | H27: 6
A28: Enterprise profit after-tax growth rate | D28: =D21/C21-1 -> 0.08 | E28: =E21/D21-1 -> 0.08 | F28: =F21/E21-1 -> 0.08 | G28: =G21/F21-1 -> 0.08465098972
A29: Net enterprise assets growth rate | D29: =D22/C22-1 -> 0.08 | E29: 0.08 | F29: 0.08
A30: Enterprise free cash flow growth rate | D30: 0.08 | E30: 0.08 | F30: 0.08
A31: Residual enterprise profit after tax growth rate | D31: =IF(AND(C25=0,D25=0),0,D25/C25-1) -> 0.08 | E31: =IF(AND(D25=0,E25=0),0,E25/D25-1) -> 0.08 | F31: =IF(AND(E25=0,F25=0),0,F25/E25-1) -> 0.08 | G31: =IF(AND(F25=0,G25=0),0,G25/F25-1) -> 0.02 | H31: =IF(AND(G25=0,H25=0),0,H25/G25-1) -> 0.02
A32: Forward return on net enterprise assets: RNEA | B32: NA | C32: =C21/B22 -> 0.11 | D32: =D21/C22 -> 0.11 | E32: =E21/D22 -> 0.11 | F32: =F21/E22 -> 0.11 | G32: =G21/F22 -> 0.1104737119
A33: Intermediate computations: You may skip these
A34: Terminal value computation | B34: =B20 -> 0 | C34: 1 | D34: 2 | E34: 3 | F34: 4 | G34: 5 | H34: 6
A35: Book value of net enterprise assets at the end of the year | F35: =F22 -> 136.048896
A36: PV of residual enterprise profit after tax at the end of the year | F36: =G25/(B15-H31) -> -11.11997501
A37: = Terminal enterprise value | F37: =SUM(F35:F36) -> 124.928921
A38: Capitalized change in enterprise cash flows | C38: 0 | D38: =(D23-C23)/$B$15 -> 2.024858265 | E38: =(E23-D23)/$B$15 -> 2.186846927 | F38: =(F23-E23)/$B$15 -> 2.361794681
A39: End of intermediate computation
A42: Valuation | B42: =B20 -> 0
A43: Baseline: Discounted enterprise cash flows
A44: Anchor: None | B44: 0 | C44: =B44/$B$47 -> 0
A45: Until horizon: PV of enterprise free cash flows until horizon | B45: =NPV(B15,C23:F23) -> 10.18671853 | C45: =B45/$B$47 -> 0.1131852478
A46: Beyond the horizon: PV of horizon Value | B46: =F37/(1+B15)^B14 -> 79.8136899 | C46: =B46/$B$47 -> 0.8868147522
A47: = Total enterprise value | B47: =SUM(B44:B46) -> 90.00040843
A48: Connecting to valuation anchors | B48: =B20 -> 0
A49: I: Enterprise cash flow yield: ECF growth model
A50: Anchor: Capitalized forthcoming enterprise cash flows | B50: =C23/B15 -> 25.31072832 | C50: =B50/$B$53 -> 0.2812290384
A51: Until horizon: PV of capitalized change in enterprise cash flows until the horizon | B51: =NPV(B15,C38:F38) -> 4.690058718 | C51: =B51/$B$53 -> 0.05211152704
A52: Beyond the horizon: PV of capitalized change in enterprise cash flows beyond the horizon | B52: =B47-SUM(B50:B51) -> 59.99962139 | C52: =B52/$B$53 -> 0.6666594346
A53: = Total enterprise value | B53: =SUM(B50:B52) -> 90.00040843 | C53: =SUM(C50:C52) -> 1
A54: II: EV to Net enterprise assets: Book value growth model [RIV] | C54: % of Value
A55: Anchor: Book value of net enterprise assets | B55: =B18 -> 100 | C55: =B55/$B$59 -> 1.111106069
A56: Until horizon: PV of residual change in net enterprise assets until horizon | B56: =NPV(B15,C25:F25) -> -2.895341971 | C56: =B56/$B$59 -> -0.03217032036
A57: [Note: Residual change in net enterprise assets = Residual enterprise earnings]
A58: Beyond the horizon: PV of residual change in net enterprise assets beyond the horizon | B58: =F36/(1+B15)^B14 -> -7.104249599 | C58: =B58/$B$59 -> -0.07893574844
A59: = Total Enterprise Value | B59: =B55+B56+B58 -> 90.00040843
A60: III. EV to forward EPAT: Earnings growth model [AEG]
A61: Anchor: Capitalized enterprise profit after tax for the forthcoming year | B61: =C17/B15 -> 92.80600383 | C61: =B61/$B$64 -> 1.031173141
A62: Until horizon: PV of capitalized change in residual enterprise profit after tax | B62: =NPV(B15,D26:F26)/B15 -> -1.491043245 | C62: =B62/$B$64 -> -0.01656707199
A63: Beyond the horizon: PV of Horizon Value | B63: =(((G26/(B15-B16))/(1+B15)^(B14-1)))/B15 -> -1.314552159 | C63: =B63/$B$64 -> -0.01460606881
A64: = Total Enterprise Value | B64: =SUM(B61:B63) -> 90.00040843
A66: Valuation ratios | B66: =B20 -> 0
A67: Enterprise cash flow yield | B67: =C23/B47 -> 0.03333318206
A68: EV/NEA ratio | B68: =B59/B18 -> 0.9000040843
A69: Forward EV/EPAT ratio | B69: =B59/C17 -> 8.181855312
A70: RNEA or ROIC | B70: =C21/B22 -> 0.11
A71: Check: EV/NEA = EV/EPAT * EPAT/NEA | B71: =B68-B69*B70 -> 0
A73: Reverse engineering: Inferring wacc OR growth | B73: =B20 -> 0
A74: Current enterprise value | B74: 90
A75: Difference = Current EV - Computed present value | B75: =B74-B47 -> -0.0004084295441
A76: Choose one of the following from the drop down box on the right and then CLICK INFER
A77: Infer wacc | C77: 2
A78: Infer growth rate
A79: =IF(C77=1,"Inferred wacc", "Inferred growth rate")&" that sets EV = Present value " -> Inferred growth rate that sets EV = Present value | B79: =IF(C77=1,B15,B16) -> 0.02
